bitfinex/quotes_SOLUSD_20220227
["timestamp","ask_amount","ask_price","bid_price","bid_amount"]
[1645999704159,2.74678921,85.272,85.205,6.0]
[1645999704359,2.74678921,85.272,85.204,2.686854]
[1645999704560,6.0,85.271,85.204,2.686854]
[1645999704959,14.93631355,85.273,85.204,2.686854]
[1645999705363,14.93631355,85.273,85.205,2.74678921]
[1645999705764,23.3781,85.298,85.207,117.6]
[1645999705962,6.0,85.297,85.21,2.79732241]
[1645999706163,6.0,85.297,85.213,2.61641868]
[1645999706364,6.0,85.297,85.216,2.58095314]
[1645999706664,6.0,85.297,85.219,2.94289605]
[1645999706863,32.89507351,85.296,85.221,117.6]
[1645999707063,6.0,85.295,85.223,117.6]
[1645999707263,6.0,85.295,85.225,117.6]
[1645999707463,6.0,85.295,85.227,117.6]
[1645999707665,6.0,85.295,85.229,117.6]
[1645999707863,6.0,85.295,85.231,117.6]
[1645999708165,6.0,85.295,85.233,117.6]
[1645999708362,6.0,85.295,85.234,37.57734694]
[1645999708563,6.0,85.295,85.235,2.69540111]
[1645999708862,6.0,85.295,85.236,6.0]
[1645999709065,6.0,85.295,85.238,2.9461078]
[1645999709263,6.0,85.295,85.241,2.33896609]
[1645999709663,2.74678921,85.294,85.223,2.38550661]
[1645999709862,6.0,85.293,85.224,6.0]
[1645999710267,2.74678921,85.292,85.224,6.0]
[1645999710463,32.89507351,85.296,85.225,35.2296376]
[1645999710664,6.0,85.295,85.225,35.2296376]
[1645999712266,6.0,85.295,85.226,6.0]
[1645999713267,6.0,85.295,85.228,2.97333052]
[1645999713467,6.0,85.295,85.231,2.25118709]
[1645999713869,6.0,85.295,85.233,117.6]
[1645999714069,6.0,85.295,85.235,117.6]
[1645999714271,6.0,85.295,85.237,117.6]
[1645999714568,6.0,85.295,85.239,2.52951874]
[1645999714769,6.0,85.295,85.24,6.0]
[1645999715570,32.89507351,85.296,85.241,117.6]
[1645999715771,32.89507351,85.296,85.243,117.6]
[1645999715971,32.89507351,85.296,85.244,6.0]
[1645999716571,32.89507351,85.296,85.241,117.6]
[1645999716772,32.89507351,85.296,85.243,117.6]
[1645999716971,32.89507351,85.296,85.244,6.0]
[1645999717472,32.89507351,85.296,85.243,117.6]
[1645999717672,32.89507351,85.296,85.239,120.12951874]
[1645999717875,32.89507351,85.296,85.241,117.6]
[1645999718073,32.89507351,85.296,85.243,117.6]
[1645999719474,32.89507351,85.296,85.244,6.0]
[1645999720777,32.89507351,85.296,85.239,6.0]
[1645999720978,32.89507351,85.296,85.238,9.18670349]
[1645999721379,32.89507351,85.296,85.239,6.0]
[1645999721979,32.89507351,85.296,85.239,117.6]
[1645999722480,6.0,85.295,85.239,117.6]
[1645999723308,6.0,85.295,85.241,117.6]
[1645999723499,6.0,85.295,85.242,6.0]
[1645999723699,6.0,85.295,85.24,6.0]
[1645999723901,32.89507351,85.296,85.24,6.0]
[1645999724100,32.89507351,85.296,85.239,6.0]
[1645999725500,32.89507351,85.296,85.238,9.18670349]
[1645999725901,32.89507351,85.296,85.24,117.6]
[1645999726099,32.89507351,85.296,85.242,117.6]
[1645999726299,32.89507351,85.296,85.243,123.6]
[1645999726504,32.89507351,85.296,85.245,117.6]
[1645999726903,51.6185,85.359,85.247,117.6]
[1645999727102,46.9285,85.359,85.251,117.6]
[1645999727302,25.91059238,85.357,85.253,117.6]
[1645999727501,25.91059238,85.357,85.255,117.6]
[1645999727701,25.91059238,85.357,85.257,117.6]
[1645999727902,32.61221318,85.356,85.259,117.6]
[1645999728102,32.61221318,85.356,85.261,117.6]
[1645999728304,11.28985987,85.355,85.263,117.6]
[1645999728501,10.688,85.354,85.265,117.6]
[1645999728702,10.688,85.354,85.266,9.09947718]
[1645999728903,21.76014775,85.353,85.266,9.09947718]
[1645999729104,6.0,85.352,85.267,23.5752]
[1645999729305,4.688,85.351,85.268,8.68953066]
[1645999729506,6.0,85.35,85.268,8.68953066]
[1645999729906,38.73103104,85.349,85.267,23.5752]
[1645999730106,7.60972756,85.348,85.267,23.5752]
[1645999730306,68.07991032,85.348,85.267,23.5752]
[1645999730506,50.13041743,85.347,85.267,23.5752]
[1645999730809,22.54228516,85.346,85.267,23.5752]
[1645999731006,1.46811699,85.345,85.267,23.5752]
[1645999731210,1.46811699,85.345,85.252,34.28472661]
[1645999731211,6.0,85.344,85.231,2.93868548]
[1645999731411,22.56302799,85.344,85.238,24.6027]
[1645999731708,117.6,85.339,85.238,24.6027]
[1645999732009,17.5986,85.34,85.238,24.6027]
[1645999732010,117.6,85.337,85.238,24.6027]
[1645999732207,117.6,85.335,85.238,24.6027]
[1645999732407,16.9,85.32,85.238,24.6027]
[1645999732608,33.49167826,85.319,85.238,24.6027]
[1645999732809,1.51516494,85.318,85.238,24.6027]
[1645999733010,6.0,85.317,85.238,24.6027]
[1645999733209,4.69,85.316,85.238,24.6027]
[1645999733411,6.0,85.315,85.238,24.6027]
[1645999733809,117.6,85.314,85.238,24.6027]
[1645999734008,16.9,85.31,85.238,24.6027]
[1645999734208,7.59398129,85.309,85.238,24.6027]
[1645999734610,1.50416601,85.307,85.238,24.6027]
[1645999734808,19.53991837,85.305,85.238,24.6027]
[1645999735012,7.6294166,85.304,85.238,24.6027]
[1645999735209,16.9,85.3,85.224,24.4248]
[1645999735409,6.0,85.299,85.224,24.4248]
[1645999735611,117.6,85.298,85.205,24.5715]
[1645999735810,7.70062939,85.297,85.205,24.5715]
[1645999736015,1.44612317,85.295,85.206,29.95292537]
[1645999736208,10.692,85.294,85.206,29.95292537]
[1645999736410,16.9,85.28,85.206,29.95292537]
[1645999736608,25.72300015,85.278,85.206,29.95292537]
[1645999736810,6.0,85.277,85.206,29.95292537]
[1645999737209,6.0,85.277,85.205,24.5715]
[1645999740323,6.0,85.277,85.206,117.6]
[1645999740523,25.72300015,85.278,85.208,117.6]
[1645999740721,25.72300015,85.278,85.21,117.6]
[1645999740920,25.72300015,85.278,85.212,117.6]
[1645999741223,25.72300015,85.278,85.213,123.6]
[1645999741422,25.72300015,85.278,85.214,6.0]
[1645999741924,25.72300015,85.278,85.215,117.6]
[1645999742124,25.72300015,85.278,85.217,117.6]
[1645999742325,25.72300015,85.278,85.219,117.6]
[1645999742527,25.72300015,85.278,85.223,117.6]
[1645999742722,25.72300015,85.278,85.222,17.39836504]
[1645999742723,25.72300015,85.278,85.226,2.29247946]
[1645999742923,25.72300015,85.278,85.229,2.41091202]
[1645999743122,22.5054,85.318,85.232,2.36559389]
[1645999743323,6.0,85.317,85.235,2.67410462]
[1645999743526,6.0,85.317,85.234,117.6]
[1645999743527,6.0,85.328,85.238,2.92840718]
[1645999743725,6.0,85.328,85.241,2.4640162]
[1645999743923,6.0,85.328,85.244,2.6937708]
[1645999744123,31.02238063,85.327,85.246,148.13099705]
[1645999744324,6.0,85.326,85.249,2.61376482]
[1645999744524,6.0,85.326,85.252,2.94589662]
[1645999744723,6.0,85.326,85.254,117.6]
[1645999744923,6.0,85.326,85.256,117.6]
[1645999745124,6.0,85.326,85.258,117.6]
[1645999745324,6.0,85.326,85.26,117.6]
[1645999745524,6.0,85.326,85.262,117.6]
[1645999746228,6.0,85.326,85.263,123.6]
[1645999746426,6.0,85.326,85.263,124.6]
[1645999747025,28.45415238,85.326,85.263,124.6]
[1645999748326,28.45415238,85.326,85.264,6.0]
[1645999748927,22.45415238,85.326,85.264,6.0]
[1645999749327,6.0,85.325,85.264,6.0]
[1645999749727,22.45415238,85.326,85.264,6.0]
[1645999750229,31.02238063,85.327,85.264,6.0]
[1645999752530,31.02238063,85.327,85.265,117.6]
[1645999752729,31.02238063,85.327,85.264,6.0]
[1645999752730,31.02238063,85.327,85.267,117.6]
[1645999752929,31.02238063,85.327,85.269,117.6]
[1645999753130,31.02238063,85.327,85.271,117.6]
[1645999753330,31.02238063,85.327,85.273,117.6]
[1645999753630,31.02238063,85.327,85.275,117.6]
[1645999753833,31.02238063,85.327,85.277,117.6]
[1645999754033,20.86834775,85.359,85.279,117.6]
[1645999754235,23.2011,85.377,85.282,2.32608435]
[1645999754532,23.2011,85.377,85.28,6.0]
[1645999754533,23.2011,85.377,85.285,2.38064134]
[1645999754733,23.2011,85.377,85.287,117.6]
[1645999754935,23.2011,85.377,85.289,117.6]
[1645999755132,32.34932146,85.376,85.291,117.6]
[1645999755332,32.34932146,85.376,85.294,2.79349778]
[1645999755631,32.34932146,85.376,85.297,2.46872601]
[1645999755831,32.34932146,85.376,85.299,117.6]
[1645999756032,32.34932146,85.376,85.301,117.6]
[1645999756235,32.34932146,85.376,85.303,117.6]
[1645999756435,32.34932146,85.376,85.306,2.98892179]
[1645999756634,32.34932146,85.376,85.309,2.33488031]
[1645999756932,32.34932146,85.376,85.311,117.6]
[1645999757132,32.34932146,85.376,85.313,117.6]
[1645999757334,32.34932146,85.376,85.312,6.0]
[1645999757335,32.34932146,85.376,85.315,117.6]
[1645999757535,32.34932146,85.376,85.319,117.6]
[1645999757732,32.34932146,85.376,85.321,117.6]
[1645999757935,32.34932146,85.376,85.318,29.23422398]
[1645999757936,32.34932146,85.376,85.323,117.6]
[1645999758133,32.34932146,85.376,85.325,117.6]
[1645999758333,22.7256,85.399,85.327,117.6]
[1645999758533,22.7256,85.399,85.33,2.77258281]
[1645999758736,22.7256,85.399,85.333,2.80236992]
[1645999758933,22.7256,85.399,85.336,3.0388982]
[1645999759135,22.7256,85.399,85.339,2.28760826]
[1645999759333,34.0879011,85.398,85.342,15.18211711]
[1645999759535,34.0879011,85.398,85.343,123.6]
[1645999763240,34.0879011,85.398,85.343,131.11]
[1645999763441,6.0,85.397,85.344,2.79047884]
[1645999763641,34.0879011,85.398,85.346,117.6]
[1645999763841,34.0879011,85.398,85.348,117.6]
[1645999764061,34.0879011,85.398,85.35,117.6]
[1645999764243,16.9,85.44,85.352,117.6]
[1645999764441,24.9678,85.443,85.354,117.6]
[1645999764442,6.0,85.439,85.354,117.6]
[1645999764643,6.0,85.442,85.356,117.6]
[1645999764844,6.0,85.442,85.358,117.6]
[1645999765045,27.54415238,85.442,85.359,9.10276588]
[1645999765346,27.54415238,85.442,85.36,6.0]
[1645999765546,32.22715238,85.442,85.361,140.129]
[1645999765748,32.22715238,85.442,85.363,117.6]
[1645999765945,27.19062806,85.441,85.365,117.6]
[1645999766146,6.0,85.44,85.367,117.6]
[1645999766346,6.0,85.44,85.369,117.6]
[1645999766548,6.0,85.44,85.371,117.6]
[1645999766751,22.5167,85.439,85.373,117.6]
[1645999766947,6.0,85.438,85.373,117.6]
[1645999767348,6.0,85.438,85.374,6.0]
[1645999768050,6.0,85.438,85.365,117.6]
[1645999768252,21.54415238,85.437,85.367,117.6]
[1645999768451,6.0,85.436,85.33,16.9]
[1645999768652,1.37474554,85.434,85.331,24.3518]
[1645999768851,16.9,85.42,85.331,24.3518]
[1645999769051,7.78002757,85.419,85.331,24.3518]
[1645999769253,16.20303085,85.418,85.332,27.36944615]
[1645999769453,6.0,85.417,85.333,117.6]
[1645999769652,30.7263,85.417,85.333,117.6]
[1645999769852,48.4272303,85.417,85.331,24.3518]
[1645999770053,21.54415238,85.416,85.331,24.3518]
[1645999770352,6.0,85.415,85.331,24.3518]
[1645999770553,7.4845028,85.415,85.331,24.3518]
[1645999770752,1.53094465,85.413,85.331,24.3518]
[1645999770952,16.9,85.4,85.311,26.60315564]
[1645999771151,27.19062806,85.398,85.312,29.2501]
[1645999771353,6.0,85.397,85.312,29.2501]
[1645999771565,4.686,85.396,85.312,29.2501]
[1645999771770,6.0,85.395,85.312,29.2501]
[1645999771966,7.83711878,85.395,85.312,29.2501]
[1645999772166,16.9,85.39,85.312,23.2501]
[1645999772366,10.686,85.389,85.301,2.62069345]
[1645999772665,10.686,85.389,85.302,6.0]
[1645999772867,24.6932,85.388,85.293,2.29532219]
[1645999773067,6.0,85.387,85.294,6.0]
[1645999773269,6.0,85.387,85.295,117.6]
[1645999773471,6.0,85.387,85.298,2.73039685]
[1645999773767,6.0,85.387,85.301,2.58073399]
[1645999773969,6.0,85.387,85.303,117.6]
[1645999774168,6.0,85.387,85.304,6.0]
[1645999774569,6.0,85.387,85.305,117.6]
[1645999774770,6.0,85.387,85.307,117.6]
[1645999774969,6.0,85.387,85.309,117.6]
[1645999775171,6.0,85.387,85.308,6.0]
[1645999775172,6.0,85.387,85.311,117.6]
[1645999775371,6.0,85.387,85.313,117.6]
[1645999775572,6.0,85.387,85.314,6.0]
[1645999776574,6.0,85.387,85.312,117.6]
[1645999776775,6.0,85.387,85.313,123.6]
[1645999776976,6.0,85.387,85.314,6.0]
[1645999777774,6.0,85.387,85.313,117.6]
[1645999778174,6.0,85.387,85.309,24.0497]
[1645999778375,6.0,85.387,69.0,31.952823]
[1645999778376,141.89094159,85.386,85.27,3.07897612]
[1645999778674,119.40562362,85.384,85.283,24.5467]
[1645999778874,16.9,85.37,85.283,24.5467]
[1645999779074,12.11556218,85.369,85.283,24.5467]
[1645999779275,17.5654915,85.368,85.283,24.5467]
[1645999779580,7.66072542,85.367,85.283,24.5467]
[1645999779876,1.81612567,85.366,85.283,24.5467]
[1645999780077,1.66832927,85.364,85.283,24.5467]
[1645999780277,1.6604561,85.359,85.283,24.5467]
[1645999780478,6.0,85.358,85.283,24.5467]
[1645999781278,2.74678921,85.357,85.28,36.07155305]
[1645999781477,28.97607439,85.355,85.28,36.07155305]
[1645999781677,7.7321444,85.354,85.28,36.07155305]
[1645999781878,10.47893361,85.354,85.28,36.07155305]
[1645999782080,1.72193161,85.349,85.264,23.4628]
[1645999782377,1.72193161,85.349,85.265,6.0]
[1645999782378,6.0,85.348,85.265,6.0]
[1645999782578,18.6406583,85.348,85.264,23.4628]
[1645999782781,1.39662896,85.347,85.264,23.4628]
[1645999782980,6.0,85.346,85.264,23.4628]
[1645999783280,10.55833215,85.346,85.264,23.4628]
[1645999783482,2.74678921,85.345,85.264,23.4628]
[1645999783686,29.8407,85.344,85.264,23.4628]
[1645999783883,1.54545508,85.343,85.264,23.4628]
[1645999784083,117.6,85.339,85.263,12.23727213]
[1645999784282,1.41608411,85.338,85.223,46.5949]
[1645999784483,117.6,85.336,85.246,6.0]
[1645999784685,117.6,85.336,85.223,46.5949]
[1645999784686,117.6,85.334,85.228,12.24776039]
[1645999784882,16.9,85.32,85.229,6.0]
[1645999785084,82.92606596,85.319,85.231,117.6]
[1645999785284,1.5751296,85.318,85.233,117.6]
[1645999785485,6.0,85.317,85.234,6.0]
[1645999785883,6.0,85.317,85.231,6.0]
[1645999786083,6.0,85.317,85.232,117.6]
[1645999786283,6.0,85.317,85.233,6.0]
[1645999786883,6.0,85.317,85.234,22.828]
[1645999787084,6.0,85.317,85.235,6.0]
[1645999788286,2.74678921,85.316,85.235,6.0]
[1645999788487,6.0,85.315,85.235,6.0]
[1645999789689,1.70665583,85.316,85.235,6.0]
[1645999789892,75.18222806,85.319,85.236,117.6]
[1645999790089,75.18222806,85.319,85.238,117.6]
[1645999790090,6.0,85.318,85.238,117.6]
[1645999790289,6.0,85.318,85.24,117.6]
[1645999790489,27.19062806,85.319,85.242,117.6]
[1645999790690,27.19062806,85.319,85.244,117.6]
[1645999790891,27.19062806,85.319,85.245,2.65224939]
[1645999791090,27.19062806,85.319,85.246,117.6]
[1645999791392,27.19062806,85.319,85.249,2.27885399]
[1645999791594,27.19062806,85.319,85.252,2.74134184]
[1645999791791,27.19062806,85.319,85.255,2.39330814]
[1645999791991,27.19062806,85.319,85.259,117.6]
[1645999792192,27.19062806,85.319,85.262,2.9070308]
[1645999792395,27.19062806,85.319,85.263,6.0]
[1645999792992,27.19062806,85.319,85.259,6.0]
[1645999795795,6.0,85.318,85.259,6.0]
[1645999795994,29.93741727,85.319,85.259,6.0]
[1645999796397,6.0,85.318,85.259,6.0]
[1645999796697,29.93741727,85.319,85.259,6.0]
[1645999797099,27.19062806,85.319,85.259,6.0]
[1645999799605,27.19062806,85.319,85.258,25.62472282]
[1645999800403,6.0,85.318,85.245,22.7706]
[1645999800605,23.5991,85.317,85.246,6.0]
[1645999800803,6.0,85.316,85.246,6.0]
[1645999801210,23.5991,85.317,85.246,6.0]
[1645999801404,6.0,85.316,85.247,32.36509987]
[1645999801605,6.0,85.316,85.248,6.0]
[1645999802610,7.62028347,85.316,85.246,6.0]
[1645999802805,7.62028347,85.316,85.229,6.0]
[1645999803409,7.62028347,85.316,85.23,35.43163663]
[1645999803611,7.62028347,85.316,85.231,6.0]
[1645999804212,7.62028347,85.316,85.232,117.6]
[1645999804511,7.62028347,85.316,85.235,2.93095851]
[1645999804711,6.0,85.316,85.236,6.0]
[1645999805120,6.0,85.316,85.237,24.4349]
[1645999805327,23.5991,85.317,85.238,6.0]
[1645999806731,6.0,85.316,85.238,6.0]
[1645999807133,6.0,85.316,85.239,117.6]
[1645999807330,6.0,85.316,85.24,6.0]
[1645999807530,7.52806118,85.316,85.24,6.0]
[1645999807735,10.27485039,85.316,85.24,6.0]
[1645999807933,10.27485039,85.316,85.238,6.0]
[1645999809737,8.74678921,85.316,85.239,120.34678921]
[1645999809933,8.74678921,85.316,85.241,117.6]
[1645999810137,8.74678921,85.316,85.243,117.6]
[1645999810340,8.74678921,85.316,85.244,6.0]
[1645999810536,10.25650801,85.316,85.244,6.0]
[1645999810738,1.58372031,85.314,85.244,6.0]
[1645999810937,10.69,85.313,85.238,6.0]
[1645999811137,16.9,85.31,85.238,6.0]
[1645999811338,7.36978665,85.309,85.238,6.0]
[1645999813242,7.66685994,85.309,85.228,12.25052162]
[1645999813439,2.74678921,85.308,85.228,12.25052162]
[1645999813638,6.0,85.307,85.228,12.25052162]
[1645999814038,1.68049424,85.305,85.228,12.25052162]
[1645999814238,6.0,85.304,85.228,12.25052162]
[1645999814840,6.0,85.304,85.224,36.32867618]
[1645999815140,6.0,85.304,85.225,6.0]
[1645999817238,6.0,85.304,85.224,6.0]
[1645999818744,6.0,85.304,85.224,30.9862]
[1645999819143,6.0,85.304,85.21,4.691]
[1645999819144,16.9,85.3,85.21,4.691]
[1645999819345,130.06450035,85.299,85.202,117.6]
[1645999819545,1.77908127,85.298,85.202,117.6]
[1645999819743,117.6,85.296,85.202,117.6]
[1645999820044,10.691,85.295,85.21,28.6123712]
[1645999820242,10.691,85.295,85.211,2.55414012]
[1645999820449,1.63340051,85.294,85.21,28.6123712]
[1645999820646,16.9,85.28,85.211,23.6678]
[1645999820844,6.0,85.279,85.211,23.6678]
[1645999821045,6.0,85.279,85.212,117.6]
[1645999821248,17.81191788,85.292,85.211,26.03329214]
[1645999821448,6.0,85.291,85.211,26.03329214]
[1645999821652,8.74678921,85.291,85.211,26.03329214]
[1645999821946,2.74678921,85.29,85.211,26.03329214]
[1645999822147,6.0,85.289,85.211,26.03329214]
[1645999822648,126.34678921,85.289,85.211,23.6678]
[1645999822847,52.4255725,85.288,85.211,23.6678]
[1645999823052,6.0,85.287,85.211,23.6678]
[1645999823249,12.22645829,85.287,85.211,23.6678]
[1645999823650,2.74678921,85.286,85.211,23.6678]
[1645999823851,6.0,85.285,85.211,23.6678]
[1645999824250,7.43878921,85.284,85.211,23.6678]
[1645999824452,6.0,85.283,85.211,23.6678]
[1645999824751,8.74678921,85.283,85.211,23.6678]
[1645999824950,27.26498921,85.282,85.211,23.6678]
[1645999825150,6.0,85.281,85.211,23.6678]
[1645999825450,8.74678921,85.281,85.211,23.6678]
[1645999825654,2.74678921,85.28,85.211,23.6678]
[1645999825852,6.0,85.279,85.211,23.6678]
[1645999826251,2.74678921,85.278,85.211,23.6678]
[1645999826451,6.0,85.277,85.211,23.6678]
[1645999832662,2.74678921,85.278,85.211,23.6678]
[1645999832865,6.0,85.277,85.212,126.63540404]
[1645999833065,24.5182,85.282,85.214,117.6]
[1645999833267,24.5182,85.282,85.215,13.08734061]
[1645999833467,24.5182,85.282,85.216,117.6]
[1645999833666,24.5182,85.282,85.217,9.00316479]
[1645999833865,24.5182,85.282,85.217,3.00316479]
[1645999834065,24.5182,85.282,85.218,6.0]
[1645999834866,24.5182,85.282,85.219,117.6]
[1645999835069,24.5182,85.282,85.221,117.6]
[1645999835270,24.5182,85.282,85.222,123.6]
[1645999835469,22.5088,85.291,85.222,123.6]
[1645999835670,6.0,85.29,85.223,24.3333]
[1645999835869,22.5088,85.291,85.224,6.0]
[1645999836073,6.0,85.29,85.224,6.0]
[1645999836873,22.5088,85.291,85.224,6.0]
[1645999837271,22.5088,85.291,85.224,8.9072842]
[1645999837472,22.5088,85.291,85.225,117.6]
[1645999837671,22.5088,85.291,85.226,8.6518642]
[1645999837874,22.5088,85.291,85.227,6.0]
[1645999838072,22.5088,85.291,85.229,2.8875262]
[1645999838273,22.5088,85.291,85.231,117.6]
[1645999838476,22.5088,85.291,85.232,15.51291598]
[1645999839295,22.5088,85.291,85.232,9.51291598]
[1645999840498,22.5088,85.291,85.224,2.33478909]
[1645999840699,6.0,85.29,85.223,24.3333]
[1645999841301,23.68221905,85.289,85.223,24.3333]
[1645999841498,6.0,85.288,85.223,24.3333]
[1645999842200,23.68221905,85.287,85.223,24.3333]
[1645999842400,6.0,85.286,85.223,24.3333]
[1645999844508,10.691,85.289,85.223,24.3333]
[1645999844702,23.67138692,85.287,85.223,24.3333]
[1645999844903,6.0,85.286,85.223,24.3333]
[1645999845504,123.6,85.289,85.223,24.3333]
[1645999845706,25.39101543,85.285,85.223,24.3333]
[1645999845906,6.0,85.284,85.223,24.3333]
[1645999847607,28.36238692,85.283,85.223,24.3333]
[1645999847810,6.0,85.282,85.223,24.3333]
[1645999848009,4.691,85.281,85.193,2.33619424]
[1645999848210,6.0,85.28,85.198,117.6]
[1645999848409,6.0,85.28,85.199,2.69239639]
[1645999848617,4.692,85.279,85.199,2.69239639]
[1645999848814,29.4352,85.278,85.201,117.6]
[1645999849012,29.4352,85.278,85.202,2.90921438]
[1645999851014,29.4352,85.278,85.208,6.0]
[1645999851216,29.4352,85.278,85.208,9.03924458]
[1645999852013,29.4352,85.278,85.207,4.691]
[1645999852616,29.4352,85.278,85.208,6.0]
[1645999852815,29.4352,85.278,85.207,4.691]
[1645999855524,29.4352,85.278,85.208,6.0]
[1645999857224,29.4352,85.278,85.209,117.6]
[1645999857425,29.4352,85.278,85.211,117.6]
[1645999858325,29.4352,85.278,85.212,140.1179]
[1645999858525,29.4352,85.278,85.212,22.5179]
[1645999859628,2.74678921,85.277,85.212,22.5179]
[1645999859827,6.0,85.276,85.212,22.5179]
[1645999860230,2.74678921,85.275,85.212,22.5179]
[1645999860428,1.63047052,85.273,85.212,22.5179]
[1645999860629,6.0,85.272,85.212,22.5179]
[1645999860830,8.74678921,85.272,85.212,22.5179]
[1645999861029,120.34678921,85.271,85.212,22.5179]
[1645999861229,6.0,85.27,85.212,22.5179]
[1645999861429,8.74678921,85.27,85.212,22.5179]
[1645999861831,2.74678921,85.269,85.212,22.5179]
[1645999862033,6.0,85.268,85.212,22.5179]
[1645999865034,117.6,85.267,85.187,23.5565]
[1645999865236,119.22128318,85.259,85.188,6.0]
[1645999865450,7.38547459,85.258,85.188,6.0]
[1645999865647,1.4784196,85.256,85.152,6.0]
[1645999865848,6.0,85.255,85.152,6.0]
[1645999866150,6.0,85.255,85.153,55.91943185]
[1645999866151,16.9,85.25,85.153,55.91943185]
[1645999866349,12.4079757,85.249,85.154,6.0]
[1645999866547,15.15476491,85.249,85.154,6.0]
[1645999866748,1.81888736,85.248,85.154,6.0]
[1645999866947,1.5851318,85.246,85.154,6.0]
[1645999867151,1.5534179,85.244,85.154,6.0]
[1645999867352,10.694,85.243,85.154,6.0]
[1645999867550,16.20303085,85.241,85.154,6.0]
[1645999867755,6.0,85.24,85.154,6.0]
[1645999867951,7.81792907,85.24,85.154,6.0]
[1645999868253,6.50926166,85.239,85.153,6.0]
[1645999868452,6.0,85.238,85.153,6.0]
[1645999868652,4.695,85.237,85.143,117.6]
[1645999868851,6.0,85.236,85.145,149.59879692]
[1645999869053,4.695,85.235,85.148,2.58109681]
[1645999869255,16.9,85.23,85.15,117.6]
[1645999869452,4.67272806,85.228,85.152,117.6]
[1645999869653,6.0,85.227,85.153,6.0]
[1645999870052,24.0635,85.226,85.153,6.0]
[1645999870355,6.0,85.225,85.153,6.0]
[1645999870552,6.0,85.225,85.15,117.6]
[1645999870752,6.0,85.225,85.152,117.6]
[1645999870952,6.0,85.225,85.153,6.0]
[1645999872755,2.74678921,85.224,85.153,6.0]
[1645999873056,6.0,85.223,85.153,6.0]
[1645999874353,2.74678921,85.222,85.153,6.0]
[1645999874553,6.0,85.221,85.153,6.0]
[1645999874955,2.74678921,85.22,85.153,6.0]
[1645999875155,6.0,85.219,85.153,6.0]
[1645999875660,2.74678921,85.218,85.153,6.0]
[1645999875956,6.0,85.217,85.153,6.0]
[1645999876155,15.62653522,85.215,85.153,6.0]
[1645999876358,6.0,85.214,85.153,6.0]
[1645999876658,8.74678921,85.214,85.153,6.0]
[1645999876860,8.74678921,85.214,85.123,24.5005]
[1645999876861,117.6,85.209,85.123,24.5005]
[1645999877059,117.6,85.207,85.123,24.5005]
[1645999877259,12.06715886,85.206,85.123,24.5005]
[1645999877460,1.6543394,85.205,85.123,24.5005]
[1645999877760,16.9,85.19,85.123,24.5005]
[1645999877961,5.24922369,85.188,85.123,24.5005]
[1645999878164,6.0,85.187,85.124,6.0]
[1645999879972,8.74678921,85.187,85.124,6.0]
[1645999880161,6.0,85.187,85.124,6.0]
[1645999881265,6.0,85.187,85.125,28.39766192]
[1645999881463,6.0,85.187,85.126,6.0]
[1645999881663,25.13101543,85.209,85.128,3.01289811]
[1645999881862,4.696,85.216,85.13,117.6]
[1645999882065,6.0,85.215,85.133,2.32209545]